Cogmind - Beta 11.1 @@@ ROGUE MODE // 2022.10.04 @ 21:39:30 Player: deadnoob Result: Destroyed by as-70266 with Assembled Focal Cannon Performance ------------- Evolutions (3) 1500 Regions Visited (11) 2200 Robots Destroyed (122) 610 Value Destroyed (3466) 3466 Prototype IDs (19) 380 Alien Tech Used (0) 0 Bonus (1599) 1599 TOTAL SCORE: 9755 Bonus ------- High Alert Combat Kills 326 Follower Combat Kills 134 Destroyed Z-Imprinter 1000 Exposed GOLEM Chamber 500 Friendly Fire -361 Cogmind --------- Core Integrity 0/700 Matter 107/300 Energy 100/100 System Corruption 0% Temperature Cool (12) Movement Hovering (180) Ox2 Location -7/Deep Caves Parts ------- > --- POWER (1) -------- (None) > --- PROPULSION (5) --- Hover Unit > --- UTILITY (5) ------ Medium Storage Unit Improved Signal Interpreter Hacking Suite > --- WEAPON (2) ------- CR-A16's Pointy Stick > --- INVENTORY (10) --- Advanced Power Amplifier Transmission Jammer Improved Light Armor Plating Hacking Drone Bay (1/1) Zionite Laser-S Scatter Rocket Array Peak State ------------ > --- POWER ------------ Micro Nuclear Core > --- PROPULSION ------- VTOL Module Improved VTOL Module Improved VTOL Module Improved VTOL Module Cooled VTOL Module > --- UTILITY ---------- Medium Storage Unit Transmission Jammer Hacking Suite Hacking Suite Hacking Suite > --- WEAPON ----------- Axe Ripper > --- INVENTORY -------- Heavy Deuterium Engine VTOL Module Advanced Power Amplifier Structural Scanner Light Armor Plating System Restoration Module Heavy Ion Cannon Scatter Rocket Array Plasma Cutter [Rating: 47] Favorites ----------- Power Light Ion Engine Engine Light Ion Engine Power Core Light Nuclear Core Propulsion Improved VTOL Module Treads Improved Treads Leg Aluminum Leg Wheel Wheel Hover Unit Hover Unit Flight Unit Improved VTOL Module Utility Hacking Suite Device Improved Sensor Array Storage Large Storage Unit Processor Transport Network Coupler Hackware Hacking Suite Protection Medium Armor Plating Weapon Autogun Energy Gun Advanced Beam Rifle Energy Cannon Heavy Ion Cannon Ballistic Gun Autogun Launcher Scatter Rocket Array Special Weapon Plasma Cutter Impact Weapon Power Maul Slashing Weapon Ripper Piercing Weapon CR-A16's Pointy Stick Special Melee Weapon Improved Datajack Build | -11 -10 -10 -10 -9 -8 -8 -7 -7 -7 -7 -7 ------- Run | Scr Mat Min Exi Min Mat Sto Fac Low Low Zio Dee Slots Evolved 6 | . . . . . 4 . 2 . . . . Power . | . . . . . . . . . . . . Propulsion 3 | . . . . . 2 . 1 . . . . Utility 3 | . . . . . 2 . 1 . . . . Weapon . | . . . . . . . . . . . . Parts Attached 161 | 2 12 . . 2 24 65 27 3 7 4 15 Power 12 | . . . . . 3 4 4 . . . 1 Engine 8 | . . . . . 1 3 3 . . . 1 Core 4 | . . . . . 2 1 1 . . . . Reactor . | . . . . . . . . . . . . Propulsion 52 | 2 2 . . . 8 29 4 1 1 . 5 Treads 27 | 2 2 . . . 7 16 . . . . . Leg 6 | . . . . . . 6 . . . . . Wheel 1 | . . . . . 1 . . . . . . Hover 6 | . . . . . . . 1 . . . 5 Flight 12 | . . . . . . 7 3 1 1 . . Utility 41 | . 5 . . 1 5 11 9 1 3 1 5 Device 6 | . 1 . . . . . 2 1 1 . 1 Storage 3 | . 2 . . . . 1 . . . . . Processor 7 | . . . . . 1 4 2 . . . . Hackware 6 | . . . . . 1 . 3 . 1 1 . Protection 19 | . 2 . . 1 3 6 2 . 1 . 4 Artifact . | . . . . . . . . . . . . Weapon 56 | . 5 . . 1 8 21 10 1 3 3 4 Energy Gun 8 | . 1 . . . . 6 . . . . 1 Energy Cannon 4 | . . . . . . . 1 1 1 . 1 Ballistic Gun 20 | . 4 . . . 7 9 . . . . . Ballistic Cannon . | . . . . . . . . . . . . Launcher 7 | . . . . . . 4 1 . 1 . 1 Special Weapon 1 | . . . . . . . . . . 1 . Impact Weapon 1 | . . . . . . . . . . 1 . Slashing Weapon 9 | . . . . 1 1 1 5 . 1 . . Piercing Weapon 2 | . . . . . . . . . . 1 1 Special Melee Weapon 4 | . . . . . . 1 3 . . . . Unidentified Prototypes 14 | . . . . . . 10 . . . . 4 Parts Lost 45 | . . . . 1 13 9 7 . 4 . 11 Power 4 | . . . . . 2 . 1 . . . 1 Propulsion 21 | . . . . . 6 5 2 . 3 . 5 Utility 11 | . . . . 1 3 2 1 . 1 . 3 Weapon 9 | . . . . . 2 2 3 . . . 2 Highest Loss Streak 9 | . . . . 1 9 3 4 . 3 . 5 To Critical Strikes 1 | . . . . . . 1 . . . . . Average Slot Usage (%) 93 | . 97 100 100 100 87 98 97 96 91 71 79 Engine 8 | . 14 14 14 14 3 8 2 7 6 . 4 Treads 17 | . 28 28 28 28 28 26 . . . . . Leg 1 | . . . . . . 6 . . . . . Hover 2 | . . . . . . . . . . . 21 Flight 9 | . . . . . . 2 36 38 36 23 5 Storage 9 | . 14 14 14 14 9 9 7 7 7 7 7 Processor 7 | . . . . . 9 16 9 7 7 7 7 Hackware 5 | . . . . . 4 . 18 15 15 20 8 Protection 8 | . 10 14 14 14 10 9 1 . 5 . 7 Energy Gun 1 | . 3 . . . . 3 . . . . 3 Ballistic Gun 12 | . 24 28 28 22 13 13 . . . . . Slashing Weapon 2 | . . . . 5 4 . 11 7 7 1 . Naked Turns . | . . . . . . . . . . . . Heaviest Build 40 | 11 36 36 36 36 40 39 24 27 34 15 32 Greatest Support 89 | 40 46 46 46 46 89 86 24 27 27 15 30 Greatest Overweight (x) 6 | . . . . . 1 1 1 . 1 . 6 Average Overweight (x) . | . . . . . . . . . . . . Largest Inventory Capacity 15 | 8 15 15 15 15 15 15 10 10 10 10 10 Average Capacity 12 | 8 12 15 15 15 15 14 10 10 10 10 10 Most Carried 15 | 6 15 15 15 15 13 15 10 10 10 10 10 Average Carried 12 | 6 11 14 15 14 9 14 9 9 9 9 8 Final Capacity 15 | 8 15 15 15 15 15 10 10 10 10 10 10 Final Carried 15 | 6 15 15 15 14 11 10 10 10 8 10 6 Class Distribution -------------------- 49% | Mutant 24% | Scavenger-Mutant 14% | Scavenger-Sprinter 10% | Hacker-Sprinter Dominant Class ---------------- Mutant | -10/Materials Mutant | -10/Mines Mutant | -10/Exiles Mutant | -9/Mines Mutant | -8/Materials Scavenger-Mutant | -8/Storage Scavenger-Sprinter | -7/Factory Scavenger-Sprinter | -7/Lower Caves Scavenger-Sprinter | -7/Lower Caves Hacker-Sprinter | -7/Zion Scavenger-Mutant | -7/Deep Caves Resources | -11 -10 -10 -10 -9 -8 -8 -7 -7 -7 -7 -7 ----------- Run | Scr Mat Min Exi Min Mat Sto Fac Low Low Zio Dee Matter Collected 3242 | 200 239 43 . 95 279 1899 285 50 30 51 71 Remotely . | . . . . . . . . . . . . Salvage Created 5197 | . 376 55 . 366 722 2670 698 48 81 . 181 Parts 275 | . 26 8 . 20 32 129 38 . . . 22 Haulers Intercepted 12 | . 1 . . . 1 6 4 . . . . Recyclers Shooed 5 | . . 1 . 2 . 2 . . . . . Parts Field Recycled . | . . . . . . . . . . . . Retrieved Matter . | . . . . . . . . . . . . Parts Self-Destructed 6 | . . . . . . . . 3 3 . . Prevented 1 | . . . . . . . . . 1 . . Kills | -11 -10 -10 -10 -9 -8 -8 -7 -7 -7 -7 -7 ------- Run | Scr Mat Min Exi Min Mat Sto Fac Low Low Zio Dee Combat Hostiles Destroyed 87 | . 9 3 . 10 14 37 11 . . . 3 Melee 12 | . . . . 4 2 . 6 . . . . Guns 66 | . 9 3 . 6 12 36 . . . . . AOE 8 | . . . . . . . 5 . . . 3 Classes Destroyed 16 | . 4 2 . 2 3 4 . . . . 1 Worker 5 | . . 1 . . 2 2 . . . . . Builder 6 | . . 1 . . . 4 1 . . . . Hauler 12 | . 1 . . . 1 6 4 . . . . Recycler 3 | . . . . 2 . 1 . . . . . Mechanic 1 | . . . . . . 1 . . . . . Operator 4 | . 1 . . . . 2 1 . . . . Watcher 6 | . . . . . 1 2 3 . . . . Swarmer 25 | . 3 3 . 6 3 . 10 . . . . Grunt 37 | . 6 . . 2 4 25 . . . . . Brawler 1 | . . . . . . 1 . . . . . Duelist 2 | . . . . . . 1 1 . . . . Protector 2 | . . . . . . 2 . . . . . Sentry 14 | . . . . . 5 7 2 . . . . Hunter 3 | . . . . . 2 1 . . . . . Z-Technician 4 | . . . . . . . . . . . 4 Z-Light 2 | . . . . . . . . . . . 2 Packrat 1 | . . . . . . . . . 1 . . Assembled 2 | . . . . 2 . . . . . . . Best Kill Streak 11 | . 3 3 . 5 11 10 6 . . . 3 Combat Bots Only 9 | . 3 3 . 3 4 9 6 . . . 3 Max Kills in Single Turn 3 | . 1 1 . 2 1 2 2 . 1 . 3 Gunslinging . | . . . . . . . . . . . . Exploded 3 | . . . . . . . 2 . . . 3 Melee 1 | . . . . 1 1 . 1 . . . . Uniques/NPCs Destroyed 1 | . . . . . . . . . . . 1 Z-Imprinter (-7/Deep Caves) Combat | -11 -10 -10 -10 -9 -8 -8 -7 -7 -7 -7 -7 -------- Run | Scr Mat Min Exi Min Mat Sto Fac Low Low Zio Dee Damage Taken 6983 | . 281 31 . 276 1518 2392 767 . 623 . 1095 Core 1183 | . 45 . . 17 178 242 274 . 200 . 227 Absorbed by Shields . | . . . . . . . . . . . . Redirected to Shielding 30 | . . . . . . 30 . . . . . Core Remaining (%) 66 | 100 . . . 75 . 23 . . . . . Volleys Fired 331 | . 29 3 . 10 45 166 7 17 8 . 46 Largest 2 | . 2 2 . 2 2 2 1 1 1 . 1 Hottest 90 | . 90 46 . 46 51 86 65 65 65 . 65 Shots Fired 574 | . 58 6 . 20 85 327 7 17 8 . 46 Gun 503 | . 58 6 . 20 85 325 . . . . 9 Cannon 36 | . . . . . . . 2 17 8 . 9 Launcher 10 | . . . . . . 2 5 . . . 3 Special 25 | . . . . . . . . . . . 25 Kinetic 423 | . 41 6 . 20 85 271 . . . . . Thermal 141 | . 17 . . . . 54 2 17 8 . 43 Explosive 9 | . . . . . . 1 5 . . . 3 Electromagnetic 1 | . . . . . . 1 . . . . . Robot Hit Streak 19 | . 13 2 . 4 18 19 1 . . . 4 Robot Miss Streak 10 | . 3 1 . 5 7 5 1 . . . 10 Penetration Max 1 | . . . . . 1 . . . . . . Secondary Targets 7 | . . . . 2 1 4 . . . . . Max Gunslinging Chain 1 | . . . . 1 1 1 . . . . . Shots Hit Robots 447 | . 36 3 . 20 72 246 51 2 1 . 16 Core Hits 218 | . 17 3 . 12 29 102 28 2 . . 25 Critical Kills 8 | . . . . . 1 7 . . . . . Critical Parts Destroyed 9 | . . . . . . 9 . . . . . Critical Strikes 29 | . . . . . 3 23 2 . . . 1 Burn 7 | . . . . . . 7 . . . . . Destroy 17 | . . . . . 1 16 . . . . . Sever 5 | . . . . . 2 . 2 . . . 1 Melee Attacks 151 | . . . . 21 15 7 89 2 2 14 1 Impact 13 | . . . . . . . . . . 13 . Slashing 127 | . . . . 21 15 6 80 2 2 1 . Piercing 1 | . . . . . . . . . . . 1 Sneak Attacks 23 | . . . . 2 . 4 16 . 1 . . Combat Hostiles 5 | . . . . 1 . . 4 . . . . Follow-up Attacks 4 | . . . . . . . 4 . . . . Damage Inflicted 10712 | . 530 139 . 679 1391 4606 2466 164 101 . 636 Guns 5904 | . 511 47 . 185 1031 4130 . . . . . Cannons . | . . . . . . . . . . . . Explosions 1050 | . . . . . . 40 550 . . . 460 Melee 3414 | . . . . 479 358 396 1916 164 101 . . Ramming 168 | . 19 92 . 15 2 40 . . . . . Kinetic 5062 | . 409 47 . 185 1031 3390 . . . . . Thermal 1018 | . 102 . . . . 740 . . . . 176 Explosive 1040 | . . . . . . 30 550 . . . 460 Electromagnetic 10 | . . . . . . 10 . . . . . Impact . | . . . . . . . . . . . . Slashing 3414 | . . . . 479 358 396 1916 164 101 . . Piercing . | . . . . . . . . . . . . Highest Corruption . | . . . . . . . . . . . . Average Corruption . | . . . . . . . . . . . . Corruption Purged . | . . . . . . . . . . . . Corruption Blocked . | . . . . . . . . . . . . Overload Shots . | . . . . . . . . . . . . Overflow Damage 347 | . . . . 80 3 137 36 . 83 . 8 Projectiles 1 | . . . . . . . . . . . 1 Explosions 7 | . . . . . . . . . . . 7 Melee 339 | . . . . 80 3 137 36 . 83 . . Knockbacks 2 | . . 1 . 1 . . . . . . . Impact 2 | . . 1 . 1 . . . . . . . Kinetic . | . . . . . . . . . . . . Secondary . | . . . . . . . . . . . . Self-Inflicted Damage 32 | . . . . . . 13 19 . . . . Shots 1 | . . . . . . . 1 . . . . Rammed 26 | . 5 12 . 1 1 7 . . . . . Targets Rammed 28 | . 5 14 . 1 1 7 . . . . . Kicked . | . . . . . . . . . . . . Crushed 2 | . . 2 . . . . . . . . . Highest Temperature 206 | . 152 24 . 31 70 206 36 145 193 . 80 Average Temperature 37 | . 48 12 . 13 16 44 3 74 36 . 25 Received Heat Transfer 2229 | . 144 9 . 30 513 1080 126 . 135 . 192 Siege Activations . | . . . . . . . . . . . . Robots Corrupted . | . . . . . . . . . . . . Combat Hostiles . | . . . . . . . . . . . . Parts Fried . | . . . . . . . . . . . . Impact Corruptions . | . . . . . . . . . . . . Robots Melted 1 | . . . . . . 1 . . . . . Combat Hostiles 1 | . . . . . . 1 . . . . . Parts Melted 8 | . 1 . . . . 6 . . . . 1 Heat Transferred 2727 | . 248 . . . . 1887 . . . . 592 Parts Sabotaged . | . . . . . . . . . . . . Parts Stolen . | . . . . . . . . . . . . Parts Stripped . | . . . . . . . . . . . . Power Chain Reactions . | . . . . . . . . . . . . Missiles Intercepted . | . . . . . . . . . . . . Alert | -11 -10 -10 -10 -9 -8 -8 -7 -7 -7 -7 -7 ------- Run | Scr Mat Min Exi Min Mat Sto Fac Low Low Zio Dee Peak Influence 949 | . 177 127 . 195 439 617 949 . . . . Initial 245 | . . 16 . . 76 115 245 . . . . Average 305 | . 79 76 . 142 208 442 572 . . . . Maximum Alert Level 3 | . . . . . 2 2 3 . . . . Low Security (%) 45 | 100 100 100 . 100 59 5 . . . . . Level 1 15 | . . . . . 29 23 26 . . . . Level 2 35 | . . . . . 11 71 46 . . . . Level 3 3 | . . . . . . . 27 . . . . Level 4 . | . . . . . . . . . . . . Level 5 . | . . . . . . . . . . . . High Security . | . . . . . . . . . . . . Max Security . | . . . . . . . . . . . . Squads Dispatched 13 | . . 1 . . 4 6 2 . . . . Investigation 5 | . . 1 . . 1 1 2 . . . . Extermination . | . . . . . . . . . . . . Reinforcement 3 | . . . . . . 3 . . . . . Assault 2 | . . . . . . 2 . . . . . Garrison 3 | . . . . . 3 . . . . . . Intercept . | . . . . . . . . . . . . Searches Triggered . | . . . . . . . . . . . . Construction Impeded . | . . . . . . . . . . . . Haulers Reinforced . | . . . . . . . . . . . . Active Scanning Responses . | . . . . . . . . . . . . Cargo Convoy Interrupts . | . . . . . . . . . . . . Stealth | -11 -10 -10 -10 -9 -8 -8 -7 -7 -7 -7 -7 --------- Run | Scr Mat Min Exi Min Mat Sto Fac Low Low Zio Dee Distress Signals 9 | . 2 . . . 3 2 2 . . . . Communications Jammed 4 | . . . . . . . 4 . . . . Distress Signals 4 | . . . . . . . 4 . . . . Times Spotted 167 | . 17 7 . 11 22 51 31 . 14 . 14 Peak Tracking Total 13 | . 4 3 . 3 7 11 9 . 13 . 13 Tactical Retreats 17 | . . . . . 2 1 7 . 2 . 5 Traps | -11 -10 -10 -10 -9 -8 -8 -7 -7 -7 -7 -7 ------- Run | Scr Mat Min Exi Min Mat Sto Fac Low Low Zio Dee Traps Triggered 3 | . 2 . . . . 1 . . . . . Indirectly 1 | . . . . . . 1 . . . . . Trap Hack Attempts 13 | . . . . . . . 13 . . . . Triggered . | . . . . . . . . . . . . Disarmed 1 | . . . . . . . 1 . . . . Reprogrammed 1 | . . . . . . . 1 . . . . Reused 1 | . . . . . . . 1 . . . . Traps Extracted . | . . . . . . . . . . . . Installed . | . . . . . . . . . . . . Triggered 2 | . . . . . . . 1 . 1 . . Machines | -11 -10 -10 -10 -9 -8 -8 -7 -7 -7 -7 -7 ---------- Run | Scr Mat Min Exi Min Mat Sto Fac Low Low Zio Dee Machines Disabled 15 | . . . . 1 . 4 8 . . . 2 Max in Single Turn 4 | . . . . 1 . 1 4 . . . 1 Garrison Access 2 | . . . . . . 1 1 . . . . Machines Sabotaged . | . . . . . . . . . . . . Garrisons Compromised . | . . . . . . . . . . . . Overloaded Fab Kills . | . . . . . . . . . . . . Hacking | -11 -10 -10 -10 -9 -8 -8 -7 -7 -7 -7 -7 --------- Run | Scr Mat Min Exi Min Mat Sto Fac Low Low Zio Dee Machines Accessed 39 | . 5 1 1 . 3 13 15 1 . . . Terminals 29 | . 4 1 . . 3 11 9 1 . . . Fabricators 2 | . . . . . . . 2 . . . . Repair Stations . | . . . . . . . . . . . . Recycling Units 4 | . 1 . . . . 1 2 . . . . Scanalyzers 1 | . . . . . . . 1 . . . . Garrison Access 2 | . . . . . . 1 1 . . . . Total Hacks 100 | . 20 2 1 . 5 29 42 1 . . . Successful 60 | . 11 . 1 . 1 16 30 1 . . . Failed 40 | . 9 2 . . 4 13 12 . . . . Catastrophic 5 | . 2 . . . 1 . 2 . . . . Database Lockouts . | . . . . . . . . . . . . Manual 61 | . 15 2 . . 5 15 24 . . . . Terminals 80 | . 19 2 . . 5 26 27 1 . . . Fabricators 5 | . . . . . . . 5 . . . . Repair Stations . | . . . . . . . . . . . . Recycling Units 10 | . 1 . . . . 2 7 . . . . Scanalyzers 2 | . . . . . . . 2 . . . . Garrison Access 2 | . . . . . . 1 1 . . . . Terminal Hacks 32 | . 8 . 1 . 1 10 11 1 . . . Record 3 | . 1 . 1 . . . . 1 . . . Robot Analysis 3 | . 1 . . . . . 2 . . . . Prototype ID Bank 3 | . 1 . . . . . 2 . . . . Open Door 6 | . . . . . . 6 . . . . . Branch Access Points 3 | . . . . . 1 . 2 . . . . Terminal Index 2 | . . . . . . 1 1 . . . . Garrison Index 1 | . . . . . . . 1 . . . . Unreport Threat 1 | . . . . . . 1 . . . . . Locate Traps 3 | . 2 . . . . 1 . . . . . Hauler Manifests 1 | . . . . . . . 1 . . . . Registered Components 1 | . 1 . . . . . . . . . . Zone Layout 5 | . 2 . . . . 1 2 . . . . Fabricator Hacks 3 | . . . . . . . 3 . . . . Network Status 2 | . . . . . . . 2 . . . . Build 1 | . . . . . . . 1 . . . . Repair Station Hacks . | . . . . . . . . . . . . Recycling Unit Hacks 2 | . . . . . . . 2 . . . . Report Inventory 1 | . . . . . . . 1 . . . . Retrieve Components 1 | . . . . . . . 1 . . . . Scanalyzer . | . . . . . . . . . . . . Garrison Access Hacks 2 | . . . . . . 1 1 . . . . Seal Access 2 | . . . . . . 1 1 . . . . Unauthorized Hacks 21 | . 3 . . . . 5 13 . . . . Terminals 14 | . 2 . . . . 4 8 . . . . Track 8 | . 2 . . . . 2 4 . . . . Assimilate 2 | . . . . . . . 2 . . . . Botnet 4 | . . . . . . 2 2 . . . . Fabricators . | . . . . . . . . . . . . Repair Stations . | . . . . . . . . . . . . Recycling Units 7 | . 1 . . . . 1 5 . . . . Monitor 2 | . . . . . . . 2 . . . . Reject 4 | . 1 . . . . 1 2 . . . . Mask 1 | . . . . . . . 1 . . . . Scanalyzers . | . . . . . . . . . . . . Garrison Access . | . . . . . . . . . . . . Data Cores Recovered 2 | . 1 . . . . . 1 . . . . Used . | . . . . . . . . . . . . Hacking Detections 29 | . 4 1 . . 2 9 13 . . . . Full Trace Events 7 | . 1 1 . . 1 2 2 . . . . Feedback Events . | . . . . . . . . . . . . Feedback Blocked . | . . . . . . . . . . . . Robot Schematics Acquired 4 | . . . . . . . . . . 4 . Robots Built . | . . . . . . . . . . . . Authchips . | . . . . . . . . . . . . Time . | . . . . . . . . . . . . Total Robot Build Rating . | . . . . . . . . . . . . Part Schematics Acquired 15 | . . . . . . . . . . 15 . Parts Built 1 | . . . . . . . 1 . . . . Authchips . | . . . . . . . . . . . . Time 117 | . . . . . . . 117 . . . . Total Part Build Rating 7 | . . . . . . . 7 . . . . Parts Repaired . | . . . . . . . . . . . . Time . | . . . . . . . . . . . . Parts Recycled . | . . . . . . . . . . . . Recycled Matter . | . . . . . . . . . . . . Retrieved Matter . | . . . . . . . . . . . . Retrieved Components 2 | . . . . . . . 2 . . . . Parts Scanalyzed . | . . . . . . . . . . . . Part Schematics Acquired . | . . . . . . . . . . . . Parts Damaged . | . . . . . . . . . . . . Bothacking | -11 -10 -10 -10 -9 -8 -8 -7 -7 -7 -7 -7 ------------ Run | Scr Mat Min Exi Min Mat Sto Fac Low Low Zio Dee Used RIF Installer . | . . . . . . . . . . . . Robots Hacked 3 | . . . . . . . 3 . . . . Non-combat 3 | . . . . . . . 3 . . . . Combat . | . . . . . . . . . . . . Robot Hacks Applied 4 | . . . . . . . 4 . . . . no_distress 2 | . . . . . . . 2 . . . . find_chute 1 | . . . . . . . 1 . . . . find_fabricator 1 | . . . . . . . 1 . . . . Relay Couplers Released . | . . . . . . . . . . . . Fabnet Peak Effective % . | . . . . . . . . . . . . Robots Rewired 2 | . . . . . . . 2 . . . . Allies Hacked . | . . . . . . . . . . . . Hacks Repelled . | . . . . . . . . . . . . Allies | -11 -10 -10 -10 -9 -8 -8 -7 -7 -7 -7 -7 -------- Run | Scr Mat Min Exi Min Mat Sto Fac Low Low Zio Dee Total Allies 11 | . . 3 . . . 2 4 . . 2 . Largest Group 3 | . . 3 . . . 2 3 1 1 2 2 Highest-Rated Group 68 | . . 40 . . . 62 68 26 26 56 56 Highest-Rated Ally 31 | . . 16 . . . 31 30 26 26 31 31 Total Orders . | . . . . . . . . . . . . Ally Attacks 32 | . . 13 . . . 12 . . . . 7 Total Damage 469 | . . 145 . . . 229 . . . . 95 Kills 6 | . . 5 . . . 1 . . . . . Allies Corrupted . | . . . . . . . . . . . . Allies Melted . | . . . . . . . . . . . . Intel | -11 -10 -10 -10 -9 -8 -8 -7 -7 -7 -7 -7 ------- Run | Scr Mat Min Exi Min Mat Sto Fac Low Low Zio Dee Robot Analysis Total 3 | . 1 . . . . . 2 . . . . Derelict Logs Recovered 8 | . . 2 . 1 . . . 2 2 1 . Drone Launches . | . . . . . . . . . . . . Drone Recoveries . | . . . . . . . . . . . . Exploration | -11 -10 -10 -10 -9 -8 -8 -7 -7 -7 -7 -7 ------------- Run | Scr Mat Min Exi Min Mat Sto Fac Low Low Zio Dee Turns Passed 7652 | 3 1020 813 200 308 441 2179 787 315 348 471 767 Spaces Moved 7011 | 1 546 483 126 128 149 1127 1542 700 526 946 737 Core 2 | . . . . . . . . . . . 2 Treads 2276 | 1 546 483 126 128 149 843 . . . . . Legs 67 | . . . . . . 67 . . . . . Wheels . | . . . . . . . . . . . . Hover 535 | . . . . . . . . . . . 535 Flight 4131 | . . . . . . 217 1542 700 526 946 200 Fastest Speed 23 | 160 160 160 160 160 160 26 23 23 27 29 29 Average Speed 75 | 160 160 160 160 160 162 138 23 26 30 29 64 Slowest Speed 350 | 160 160 160 160 160 240 190 94 27 102 29 350 Overloaded Moves . | . . . . . . . . . . . . Propulsion Burnouts . | . . . . . . . . . . . . Robots Hopped 4 | . . . . . . . 2 . 2 . . Cave-ins Triggered . | . . . . . . . . . . . . Exploration Rate (%) 57 | 1 71 95 47 25 17 93 39 82 63 83 73 Regions Visited 11 Branch Regions 8 Pre-discovered Areas 2 | . . . 1 . . . . . 1 . . Known Exits Taken 5 | . . . . . 1 . 1 1 1 1 . Unknown Exits Taken 6 | 1 1 1 1 1 . 1 . . . . . Scrap Searched 10 | . . 1 . . . . . 4 3 2 . Spaces Dug 96 | . . . . . 2 51 33 4 2 2 2 Terrain Destroyed 198 | . . . . . 2 51 49 10 5 2 79 Melee 23 | . . . . . 2 . 17 . 1 2 1 Projectile 17 | . . . . . . . 2 10 4 . 1 AOE 158 | . . . . . . 51 30 . . . 77 Terrain Rammed . | . . . . . . . . . . . . Walls Destroyed . | . . . . . . . . . . . . Machines Disabled . | . . . . . . . . . . . . Actions | -11 -10 -10 -10 -9 -8 -8 -7 -7 -7 -7 -7 --------- Run | Scr Mat Min Exi Min Mat Sto Fac Low Low Zio Dee Total 8608 | 2 644 511 125 183 246 1493 1834 807 701 1114 948 Wait 744 | . 28 8 . 22 8 36 131 81 150 146 134 Move 6992 | . 545 482 125 127 148 1126 1537 699 521 945 737 Hop 4 | . . . . . . . 2 . 2 . . Pick Up 71 | . 12 2 . . 4 21 20 3 3 3 3 Fast Attach 63 | . 6 . . . 8 31 8 . . 1 9 Attach 32 | . . . . 1 10 5 5 1 5 2 3 Detach 19 | . 1 . . . 1 6 3 . 3 1 4 Swap 66 | 2 6 . . 1 6 29 14 2 2 1 3 Drop 104 | . 12 2 . . . 59 15 2 5 1 8 Fire 331 | . 29 3 . 10 45 166 7 17 8 . 46 Melee 141 | . . . . 21 15 7 79 2 2 14 1 Ram 1 | . . . . . . 1 . . . . . Kick . | . . . . . . . . . . . . Crush 27 | . 5 14 . 1 1 6 . . . . . Escape Stasis . | . . . . . . . . . . . . Rewire . | . . . . . . . . . . . . Trap 13 | . . . . . . . 13 . . . . Miscellaneous . | . . . . . . . . . . . . Route ------- -11/Scrapyard -10/Materials (discovered 4 exits: [*Mat x2] / *Min x2) -10/Mines (discovered 3 exits: [*Mat x2] / *Exi) -10/Exiles -9/Mines -8/Materials (discovered 2 exits: *Sto x2) -8/Storage -7/Factory (discovered 2 exits: *Low x2) -7/Lower Caves -7/Lower Caves (discovered 2 exits: [*Fac] / *Zio) -7/Zion (discovered 2 exits: *Dee / [*Pro]) -7/Deep Caves (discovered 1 exit: [*Pro]) History --------- Turn | Location | Event 4 | -11/Scrapyard | Discovered new exit (range 0) 4 | -11/Scrapyard | Entered Materials 303 | -10/Materials | Build established: Mutant 331 | -10/Materials | Discovered new exit (range 3) 409 | -10/Materials | Discovered new exit (range 12) 619 | -10/Materials | Discovered new exit (range 12) 819 | -10/Materials | Discovered new exit (range 15) 1024 | -10/Materials | Entered Mines 1024 | -10/Mines | Discovered new exit (range 8) 1040 | -10/Mines | Met a Derelict bent on vengeance 1053 | -10/Mines | Assisted by bots powering up and referring to "LRC-V3" 1222 | -10/Mines | Learned Materials terminal intel 1388 | -10/Mines | Learned 2 Materials zone layouts 1425 | -10/Mines | A weapon hastily lodged in a ceiling crevice suddenly fell to the ground 1708 | -10/Mines | Deemed a non-threat by the Exiles lab entrance 1710 | -10/Mines | Discovered new exit (range 5) 1735 | -10/Mines | Discovered new exit (range 9) 1764 | -10/Mines | Joined a pair of Derelicts in attacking an 0b10 outpost 1837 | -10/Mines | Entered Exiles 1877 | -10/Exiles | Met 8R-AWN 1906 | -10/Exiles | Met EX-HEX 1965 | -10/Exiles | Met EX-DEC 1973 | -10/Exiles | Learned location of Zion (-7) 2023 | -10/Exiles | Discovered new exit (range 11) 2037 | -10/Exiles | Entered Mines 2097 | -9/Mines | Learned Materials emergency access door positions 2110 | -9/Mines | Discovered new exit (range 9) 2214 | -9/Mines | Excavation squad dispatched 2214 | -9/Mines | A large section of the Mines collapsed 2345 | -9/Mines | Entered Materials 2345 | -8/Materials | Evolved 4 slots: Propulsion x2, Utility x2 2348 | -8/Materials | Loaded intel: 12 terminal locations 2540 | -8/Materials | Identified exit to Storage 2543 | -8/Materials | Garrison activated, responded to threat 2622 | -8/Materials | Lost 9 parts (1p4n2u2w) 2786 | -8/Materials | Entered Storage 3058 | -8/Storage | Lost 3 parts (1n2u) 3187 | -8/Storage | Met a pair of Derelict thieves 3283 | -8/Storage | Core integrity fell below 50% 3345 | -8/Storage | Destroyed 9 combat bots 3425 | -8/Storage | Discovered new exit (range 16) 3598 | -8/Storage | Build established: Scavenger-Mutant 4361 | -8/Storage | Found Prototype Launcher 4361 | -8/Storage | Identified Scatter Rocket Array 4512 | -8/Storage | Build established: Mutant 4965 | -8/Storage | Entered Factory 4965 | -7/Factory | Evolved 2 slots: Propulsion x1, Utility x1 5088 | -7/Factory | Identified exit to Lower Caves 5225 | -7/Factory | Build established: Scavenger-Sprinter 5436 | -7/Factory | Fabricated Adv. Power Amplifier (x1) 5733 | -7/Factory | Lost 4 parts (1p1n1u1w) 5752 | -7/Factory | Entered Lower Caves 5752 | -7/Lower Caves | Accompanied by 1 ally 5875 | -7/Lower Caves | Identified exit to Lower Caves 6019 | -7/Lower Caves | Learned Factory terminal intel 6039 | -7/Lower Caves | Encountered a Warlord checkpoint 6067 | -7/Lower Caves | Entered another Lower Caves area 6067 | -7/Lower Caves | Accompanied by 1 ally 6076 | -7/Lower Caves | Learned Factory garrison access intel 6084 | -7/Lower Caves | Spotted B-75 Beast 6124 | -7/Lower Caves | Discovered new exit (range 14) 6386 | -7/Lower Caves | Attracted the attention of an 0b10 checkpoint 6391 | -7/Lower Caves | Core integrity fell below 50% 6412 | -7/Lower Caves | Discovered new exit (range 10) 6414 | -7/Lower Caves | Identified exit to Zion 6415 | -7/Lower Caves | Entered Zion 6422 | -7/Zion | Lost 3 parts (3n) 6545 | -7/Zion | Found GAL Module 6594 | -7/Zion | Given the Hacking Drone Bay 6595 | -7/Zion | Found Prototype Device 6632 | -7/Zion | Learned location of 1 exit from Factory 6650 | -7/Zion | Gained Derelict followers 6691 | -7/Zion | Build established: Hacker-Sprinter 6713 | -7/Zion | Found CR-A16's Pointy Stick 6732 | -7/Zion | Discovered new exit (range 11) 6795 | -7/Zion | Discovered new exit (range 5) 6795 | -7/Zion | Saw the warning signs outside the Deep Caves entrance 6803 | -7/Zion | Identified exit to Deep Caves 6886 | -7/Zion | Entered Deep Caves 6886 | -7/Deep Caves | Accompanied by 2 allies 6937 | -7/Deep Caves | Attacked by Z-Imprinter 6946 | -7/Deep Caves | Destroyed Z-Imprinter 6977 | -7/Deep Caves | Identified Hacking Drone Bay 7038 | -7/Deep Caves | Found Prototype Protection 7203 | -7/Deep Caves | Z-Facility disabled 7280 | -7/Deep Caves | Build established: Scavenger-Mutant 7293 | -7/Deep Caves | Discovered new exit (range 11) 7366 | -7/Deep Caves | Exposed GOLEM chamber 7392 | -7/Deep Caves | Core integrity fell below 20% 7449 | -7/Deep Caves | Spotted as-70266 7524 | -7/Deep Caves | Identified Zio. Heavy Carapace 7568 | -7/Deep Caves | Lost 5 parts (3n1u1w) 7653 | -7/Deep Caves | Destroyed by as-70266 with Assembled Focal Cannon Last Messages --------------- 07202_ Dropped Mak. Hacking Suite. 07203_ Z-Facility disabled. 07293_ EXIT=FOUND 07366_ Wall Chamber breached. 07366_ A GOLEM Unit tumbles out of the Wall Chamber. 07371_ GOLEM Unit springs to life. 07372_ as-94145 GOLEM Unit beginning Prototype Leg integration. 07387_ A GOLEM Unit tumbles out of the Wall Chamber. 07391_ GOLEM Unit springs to life. 07394_ Zio. Light Carapace destroyed. 07456_ as-70266: "DSI9AT1D G8OHIBQ29FWG 26R186 QD12WHW8W33 TDK1 81FTS" 07497_ Plasma Cutter destroyed. 07518_ The unstable cave ceiling collapses. 07523_ Hover Unit destroyed. 07524_ Identified Zio. Heavy Carapace. 07534_ Hover Unit destroyed. 07537_ Zio. Heavy Carapace destroyed. 07653_ Hover Unit destroyed. 07653_ Lgt. Ion Engine destroyed. 07653_ Hvy. Ion Cannon destroyed. Map ----- +----------------------------------------------------+ | | | | | ????????????????????????####?????????????????????? | | ????????????????????????# #????###############??? | | ????????????????????????# !#?#### ##?? | | ????????????????????????#/ ### #?? | | ?????????###????????????# ### ### | | #???????? ###### ??????# ## # | | #???????? # ????# | | ##??????? | | #??????? | | #??????? | | ##?????## | | #??????# """"" """""" | | #???#### """""""""""""" | | #???? # """""""""""""" | | #???? """""""""""""" | | #?????# """"""""""" | | ##?????# """??""""""""" | | #????## """""""""""""" | | ##???# """""""""""""" | | #???## """""""""""""" | | #?#### """""""""/" " | | ### # """""""""%!%* | | ## """"""""! =!/ | | ## @ *!= | | ### """"""""" | | #?## """"""""""" | | #??### """""""""""""*= | | #????# """""" =/ | | #????## """""" """ | | #?????# """""" """"" | | #??##### """""" """"""" | | ##?## ## """"" """"""" | | #??# ## "?"" ??""""" | | ???# # ""?"?????"" | | ??## ""???????? | | ### ""???????? | | ""?????????? | | "??????????? | | ???????????? | | ### ?????????????? | | #?# ????????????????? ?? | | #?### ??????????????????????? ???? | | #???# ???????????????????????????? | | ???## ????????????????????????????? | | #???# ????????????????????????????? | | ##???# ##?????????????????????????????? | | #????## ##???????????????????????????????? | | ??????# ?????????????????????????????????? | +----------------------------------------------------+ Best States ------------- Heat Dissipation 34 Energy Generation 18 Energy Capacity 280 Matter Stores 300 Matter Capacity 300 Sight Range 16 Robot Scan Range 15 Terrain Scan Range 14 Terrain Scan Density 10 Jamming Range 12 Power Amplification 30 Armor Coverage 1200 Core Shielding 20 Evasion (%) 65 Targeting Accuracy 5 Melee Accuracy 6 Target Analysis 5 Recoil Reduction 4 Offensive Hacking 30 Authchip Count 1 Item Schematics ----------------- Dynamic Insulation System | -7/Zion | Archive Coolant Injector | -7/Zion | Archive Hvy. Flak Cannon | -7/Zion | Archive Mak. Flight Unit | -7/Zion | Archive Mak. Transmission Jammer | -7/Zion | Archive Recalibrator | -7/Zion | Archive Remote Shield | -7/Zion | Archive Imp. Carbon-fiber Leg | -7/Zion | Archive Phase Cannon | -7/Zion | Archive Shock Absorption System | -7/Zion | Archive Recoil Nullifier | -7/Zion | Archive Adv. Plasma Cannon | -7/Zion | Archive Fusion Compressor | -7/Zion | Archive Component Analysis Suite | -7/Zion | Archive Falx | -7/Zion | Archive Robot Schematics ------------------ L-31 Rogue | -7/Zion | Archive D-53 Grenadier | -7/Zion | Archive R-06 Scavenger | -7/Zion | Archive H-88 Terminator | -7/Zion | Archive Fabricated ------------ Adv. Power Amplifier | x1 | -7/Factory | Preloaded Alien Tech Used ----------------- None Achievements -------------- Hehehe Challenges ------------ None Game ------ Seed TachyonStorageSplitter Manual? 0 Play Time 01:12:45 Cumulative 133.0 hours Start 2022.10.04 @ 20:25:57 End 2022.10.04 @ 21:39:30 Sessions 1 Manual Loads 0 Difficulty Rogue Special Mode None Game No. 158 Rogue 158 Adventurer 0 Explorer 0 Win Type - Total 1 Types 1/0/0/0/0/0/0/0/0 Lore% 70 Gallery% 73 Achievement% 56 Wizard Run 0 Options --------- ASCII 0 Keyboard 0 Movement Numpad Keybinds 0 Fullscreen 2 Font 18/SmallcapsGlow Map View 76x50 Tactical HUD 1 Map Filters NONE Filters NONE Steam 1 RUN: 5e7e6e0f-ffb2-4ef1-aa31-fd90e2700c61